[Event "MČR juniorů a juniorek v rapid šachu 2024"]
[Site "Hotel Fit Fun, Harrachov, Czech Republic"]
[Date "2024.09.21"]
[Round "6.13"]
[White "Garabik Marek"]
[Black "Sknouril Jakub"]
[Result "1-0"]
[TimeControl "20+5"]
[WhiteFideId "23717742"]
[BlackFideId "23731133"]
[WhiteElo "1933"]
[BlackElo "1806"]

1. e4 {[%clk 00:20:09]} e5 {[%clk 00:20:09]} {[%emt 00:00:02]} 2. Nf3 {[%clk
00:20:12]} Nf6 {[%clk 00:20:11]} {[%emt 00:00:03]} 3. Nxe5 {[%clk 00:20:16]} d6
{[%clk 00:20:16]} {[%emt 00:00:01]} 4. Nf3 {[%clk 00:20:20]} Nxe4 {[%clk
00:20:20]} 5. d4 {[%clk 00:20:17]} {[%emt 00:00:08]} Be7 {[%clk 00:20:20]}
{[%emt 00:00:06]} 6. Bd3 {[%clk 00:20:19]} {[%emt 00:00:04]} Nf6 {[%clk
00:20:22]} {[%emt 00:00:02]} 7. O-O {[%clk 00:20:20]} {[%emt 00:00:04]} O-O
{[%clk 00:20:25]} {[%emt 00:00:03]} 8. Re1 {[%clk 00:20:20]} {[%emt 00:00:04]}
Bg4 {[%clk 00:19:46]} {[%emt 00:00:45]} 9. Bg5 {[%clk 00:20:19]} {[%emt
00:00:06]} Nc6 {[%clk 00:19:06]} {[%emt 00:00:45]} 10. c3 {[%clk 00:20:16]}
{[%emt 00:00:08]} h6 {[%clk 00:18:52]} {[%emt 00:00:19]} 11. Bh4 {[%clk
00:20:05]} {[%emt 00:00:16]} Qd7 {[%clk 00:18:56]} {[%emt 00:00:01]} 12. Nbd2
{[%clk 00:20:00]} {[%emt 00:00:10]} Rfe8 {[%clk 00:18:45]} {[%emt 00:00:16]} 13.
Qc2 {[%clk 00:19:53]} {[%emt 00:00:12]} Nd5 {[%clk 00:17:22]} {[%emt 00:01:28]}
14. Bxe7 {[%clk 00:19:42]} {[%emt 00:00:16]} Rxe7 {[%clk 00:17:26]} {[%emt
00:00:02]} 15. Rxe7 {[%clk 00:19:45]} {[%emt 00:00:01]} Ncxe7 {[%clk 00:17:18]}
{[%emt 00:00:13]} 16. Re1 {[%clk 00:19:08]} {[%emt 00:00:42]} Nf4 {[%clk
00:16:24]} {[%emt 00:00:59]} 17. Bf1 {[%clk 00:18:52]} {[%emt 00:00:21]} Neg6
{[%clk 00:16:15]} {[%emt 00:00:13]} 18. h3 {[%clk 00:16:37]} {[%emt 00:02:21]}
Bf5 {[%clk 00:14:18]} {[%emt 00:02:01]} 19. Qb3 {[%clk 00:15:30]} {[%emt
00:01:13]} Qc6 {[%clk 00:11:56]} {[%emt 00:02:27]} 20. Bb5 {[%clk 00:14:23]}
{[%emt 00:01:12]} Bc2 {[%clk 00:08:36]} {[%emt 00:03:24]} 21. Bxc6 {[%clk
00:08:57]} {[%emt 00:05:31]} Bxb3 {[%clk 00:08:39]} {[%emt 00:00:02]} 22. Bxb7
{[%clk 00:09:01]} {[%emt 00:00:02]} Rb8 {[%clk 00:08:43]} 23. Nxb3 {[%clk
00:08:16]} {[%emt 00:00:50]} Rxb7 {[%clk 00:08:51]} {[%emt 00:00:02]} 24. Re8+
{[%clk 00:08:03]} {[%emt 00:00:24]} Kh7 {[%clk 00:08:55]} 25. Ne1 {[%clk
00:07:52]} {[%emt 00:00:15]} c6 {[%clk 00:05:07]} {[%emt 00:03:55]} 26. g3
{[%clk 00:07:16]} {[%emt 00:00:41]} Nxh3+ {[%clk 00:05:09]} {[%emt 00:00:02]}
27. Kg2 {[%clk 00:07:20]} a5 {[%clk 00:03:45]} {[%emt 00:01:30]} 28. Kxh3
{[%clk 00:07:06]} {[%emt 00:00:19]} a4 {[%clk 00:03:48]} {[%emt 00:00:01]} 29.
Nc1 {[%clk 00:07:09]} {[%emt 00:00:02]} Rxb2 {[%clk 00:03:51]} {[%emt
00:00:02]} 30. Re2 {[%clk 00:07:11]} {[%emt 00:00:03]} a3 {[%clk 00:03:06]}
{[%emt 00:00:51]} 31. Nc2 {[%clk 00:04:55]} {[%emt 00:02:20]} h5 {[%clk
00:03:02]} {[%emt 00:00:09]} 32. Nxa3 {[%clk 00:04:57]} {[%emt 00:00:03]} Rb7
{[%clk 00:02:57]} {[%emt 00:00:10]} 33. Nc4 {[%clk 00:04:41]} {[%emt 00:00:21]}
d5 {[%clk 00:02:59]} {[%emt 00:00:03]} 34. Ne5 {[%clk 00:04:31]} {[%emt
00:00:15]} Ne7 {[%clk 00:02:35]} {[%emt 00:00:30]} 35. Nxf7 {[%clk 00:03:58]}
{[%emt 00:00:37]} Ng6 {[%clk 00:00:09]} {[%emt 00:02:31]} 36. Ne5 {[%clk
00:04:01]} {[%emt 00:00:02]} Rb1 {[%clk 00:00:12]} {[%emt 00:00:02]} 37. Ncd3
{[%clk 00:03:44]} {[%emt 00:00:22]} Nxe5 {[%clk 00:00:14]} {[%emt 00:00:03]} 38.
Nxe5 {[%clk 00:03:47]} {[%emt 00:00:02]} Rc1 {[%clk 00:00:18]} {[%emt
00:00:01]} 39. Nxc6 {[%clk 00:03:48]} {[%emt 00:00:05]} Rxc3 {[%clk 00:00:21]}
{[%emt 00:00:02]} 40. Ne7 {[%clk 00:03:49]} {[%emt 00:00:03]} Rd3 {[%clk
00:00:23]} {[%emt 00:00:04]} 41. Nxd5 {[%clk 00:03:51]} {[%emt 00:00:03]} Rxd4
{[%clk 00:00:27]} 42. Nf4 {[%clk 00:03:52]} {[%emt 00:00:03]} Rd6 {[%clk
00:00:12]} {[%emt 00:00:21]} 43. Kg2 {[%clk 00:03:47]} {[%emt 00:00:10]} g6
{[%clk 00:00:08]} {[%emt 00:00:09]} 44. Nh3 {[%clk 00:03:43]} {[%emt 00:00:08]}
Ra6 {[%clk 00:00:12]} {[%emt 00:00:02]} 45. Ng5+ {[%clk 00:03:31]} {[%emt
00:00:16]} Kg7 {[%clk 00:00:12]} {[%emt 00:00:05]} 46. Nf3 {[%clk 00:03:33]}
{[%emt 00:00:03]} Ra3 {[%clk 00:00:15]} {[%emt 00:00:03]} 47. Rb2 {[%clk
00:03:16]} {[%emt 00:00:21]} Kf6 {[%clk 00:00:17]} {[%emt 00:00:04]} 48. Nd2
{[%clk 00:03:15]} {[%emt 00:00:06]} Ra4 {[%clk 00:00:16]} {[%emt 00:00:05]} 49.
Nb1 {[%clk 00:02:59]} {[%emt 00:00:21]} h4 {[%clk 00:00:15]} {[%emt 00:00:06]}
50. a3 {[%clk 00:02:57]} {[%emt 00:00:08]} hxg3 {[%clk 00:00:18]} {[%emt
00:00:01]} 51. fxg3 {[%clk 00:03:01]} Ke5 {[%clk 00:00:21]} {[%emt 00:00:03]}
52. Rb4 {[%clk 00:03:03]} {[%emt 00:00:03]} Ra7 {[%clk 00:00:22]} {[%emt
00:00:02]} 53. a4 {[%clk 00:03:02]} {[%emt 00:00:08]} g5 {[%clk 00:00:24]}
{[%emt 00:00:03]} 54. Nd2 {[%clk 00:02:58]} {[%emt 00:00:08]} Rd7 {[%clk
00:00:20]} {[%emt 00:00:09]} 55. Nc4+ {[%clk 00:02:56]} {[%emt 00:00:07]} Kf6
{[%clk 00:00:24]} 56. Rb6+ {[%clk 00:02:58]} {[%emt 00:00:04]} Kf5 {[%clk
00:00:23]} {[%emt 00:00:05]} 57. Rb5+ {[%clk 00:02:33]} {[%emt 00:00:29]} Kf6
{[%clk 00:00:09]} {[%emt 00:00:19]} 58. g4 {[%clk 00:02:16]} {[%emt 00:00:23]}
Rd4 {[%clk 00:00:11]} {[%emt 00:00:02]} 59. Rb6+ {[%clk 00:02:17]} {[%emt
00:00:04]} Ke7 {[%clk 00:00:13]} {[%emt 00:00:02]} 60. Ne3 {[%clk 00:02:10]}
{[%emt 00:00:13]} Rxa4 {[%clk 00:00:16]} {[%emt 00:00:02]} 61. Kf3 {[%clk
00:01:15]} {[%emt 00:01:00]} Rf4+ {[%clk 00:00:18]} {[%emt 00:00:03]} 62. Kg3
{[%clk 00:01:18]} {[%emt 00:00:02]} Kf7 {[%clk 00:00:10]} {[%emt 00:00:13]} 63.
Rb5 {[%clk 00:00:35]} {[%emt 00:00:49]} Re4 {[%clk 00:00:11]} {[%emt 00:00:03]}
64. Kf3 {[%clk 00:00:38]} {[%emt 00:00:02]} Rf4+ {[%clk 00:00:15]} 65. Kg3
{[%clk 00:00:33]} {[%emt 00:00:11]} Re4 {[%clk 00:00:19]} 66. Rf5+ {[%clk
00:00:37]} {[%emt 00:00:01]} Kg6 {[%clk 00:00:20]} {[%emt 00:00:03]} 67. Kf3
{[%clk 00:00:40]} {[%emt 00:00:03]} Ra4 {[%clk 00:00:22]} {[%emt 00:00:02]} 68.
Rb5 {[%clk 00:00:31]} {[%emt 00:00:15]} Rf4+ {[%clk 00:00:24]} {[%emt
00:00:02]} 69. Kg3 {[%clk 00:00:35]} {[%emt 00:00:02]} Re4 {[%clk 00:00:28]}
{[%emt 00:00:01]} 70. Rb3 {[%clk 00:00:37]} {[%emt 00:00:02]} Ra4 {[%clk
00:00:10]} {[%emt 00:00:23]} 71. Nf5 {[%clk 00:00:35]} {[%emt 00:00:08]} Ra2
{[%clk 00:00:07]} {[%emt 00:00:08]} 72. Rb6+ {[%clk 00:00:27]} {[%emt
00:00:13]} Kf7 {[%clk 00:00:07]} {[%emt 00:00:03]} 73. Kf3 {[%clk 00:00:27]}
{[%emt 00:00:06]} Ra4 {[%clk 00:00:12]} 74. Rb3 {[%clk 00:00:16]} {[%emt
00:00:16]} Kf6 {[%clk 00:00:15]} {[%emt 00:00:02]} 75. Nd6 {[%clk 00:00:13]}
{[%emt 00:00:08]} Rf4+ {[%clk 00:00:18]} {[%emt 00:00:02]} 76. Kg3 {[%clk
00:00:16]} Ra4 {[%clk 00:00:20]} {[%emt 00:00:03]} 77. Rf3+ {[%clk 00:00:18]}
{[%emt 00:00:03]} Kg6 {[%clk 00:00:22]} {[%emt 00:00:03]} 78. Nf5 {[%clk
00:00:13]} {[%emt 00:00:10]} Ra7 {[%clk 00:00:18]} {[%emt 00:00:09]} 79. Nd6
{[%clk 00:00:13]} {[%emt 00:00:05]} Ra4 {[%clk 00:00:21]} {[%emt 00:00:03]} 80.
Nb5 {[%clk 00:00:15]} {[%emt 00:00:02]} Rb4 {[%clk 00:00:23]} {[%emt 00:00:04]}
81. Nc3 {[%clk 00:00:18]} {[%emt 00:00:02]} Rc4 {[%clk 00:00:26]} {[%emt
00:00:02]} 82. Nd1 {[%clk 00:00:18]} {[%emt 00:00:04]} Rc6 {[%clk 00:00:31]} 83.
Nf2 {[%clk 00:00:20]} {[%emt 00:00:03]} Ra6 {[%clk 00:00:35]} 84. Nd3 {[%clk
00:00:24]} Ra5 {[%clk 00:00:37]} {[%emt 00:00:03]} 85. Nf2 {[%clk 00:00:17]}
{[%emt 00:00:10]} Rb5 {[%clk 00:00:42]} {[%emt 00:00:02]} 86. Ne4 {[%clk
00:00:18]} {[%emt 00:00:04]} Rb6 {[%clk 00:00:46]} 87. Nc3 {[%clk 00:00:15]}
{[%emt 00:00:08]} Rd6 {[%clk 00:00:43]} {[%emt 00:00:08]} 88. Ne2 {[%clk
00:00:09]} {[%emt 00:00:11]} Ra6 {[%clk 00:00:47]} {[%emt 00:00:01]} 89. Nd4
{[%clk 00:00:13]} {[%emt 00:00:02]} Rb6 {[%clk 00:00:45]} {[%emt 00:00:07]} 90.
Re3 {[%clk 00:00:15]} {[%emt 00:00:02]} Kf6 {[%clk 00:00:47]} {[%emt 00:00:03]}
91. Nf3 {[%clk 00:00:12]} {[%emt 00:00:08]} Kg6 {[%clk 00:00:50]} {[%emt
00:00:02]} 92. Ne5+ {[%clk 00:00:16]} {[%emt 00:00:01]} Kg7 {[%clk 00:00:41]}
{[%emt 00:00:13]} 93. Nd7 {[%clk 00:00:10]} {[%emt 00:00:12]} Rd6 {[%clk
00:00:23]} {[%emt 00:00:23]} 94. Nc5 {[%clk 00:00:11]} {[%emt 00:00:04]} Rd5
{[%clk 00:00:16]} {[%emt 00:00:10]} 95. Nd3 {[%clk 00:00:10]} {[%emt 00:00:07]}
Ra5 {[%clk 00:00:19]} {[%emt 00:00:02]} 96. Kf3 {[%clk 00:00:12]} {[%emt
00:00:04]} Ra4 {[%clk 00:00:22]} {[%emt 00:00:01]} 97. Re4 {[%clk 00:00:15]}
{[%emt 00:00:02]} Ra3 {[%clk 00:00:27]} {[%emt 00:00:01]} 98. Ke3 {[%clk
00:00:19]} Ra1 {[%clk 00:00:25]} {[%emt 00:00:07]} 99. Kd4 {[%clk 00:00:22]}
{[%emt 00:00:02]} Rf1 {[%clk 00:00:24]} {[%emt 00:00:07]} 100. Ke5 {[%clk
00:00:22]} {[%emt 00:00:05]} Rf3 {[%clk 00:00:26]} {[%emt 00:00:02]} 101. Nc5
{[%clk 00:00:25]} {[%emt 00:00:03]} Kg6 {[%clk 00:00:21]} {[%emt 00:00:10]} 102.
Rd4 {[%clk 00:00:22]} {[%emt 00:00:07]} Re3+ {[%clk 00:00:24]} {[%emt
00:00:03]} 103. Ne4 {[%clk 00:00:26]} Ra3 {[%clk 00:00:26]} {[%emt 00:00:02]}
104. Rd6+ {[%clk 00:00:29]} {[%emt 00:00:02]} Kg7 {[%clk 00:00:29]} 105. Rc6
{[%clk 00:00:20]} {[%emt 00:00:15]} Ra5+ {[%clk 00:00:31]} {[%emt 00:00:03]}
106. Rc5 {[%clk 00:00:24]} {[%emt 00:00:01]} Ra4 {[%clk 00:00:36]} 107. Kf5
{[%clk 00:00:28]} {[%emt 00:00:02]} Ra1 {[%clk 00:00:26]} {[%emt 00:00:15]} 108.
Kxg5 {[%clk 00:00:30]} {[%emt 00:00:03]} Rg1 {[%clk 00:00:29]} {[%emt
00:00:01]} 109. Rc7+ {[%clk 00:00:33]} {[%emt 00:00:02]} Kg8 {[%clk 00:00:33]}
110. Nf6+ {[%clk 00:00:37]} {[%emt 00:00:01]} Kf8 {[%clk 00:00:34]} {[%emt
00:00:04]} 111. Rc8+ {[%clk 00:00:36]} {[%emt 00:00:06]} Kf7 {[%clk 00:00:37]}
{[%emt 00:00:02]} 112. Rc7+ {[%clk 00:00:34]} {[%emt 00:00:07]} Kf8 {[%clk
00:00:42]} 113. Nd7+ {[%clk 00:00:29]} {[%emt 00:00:10]} Kg8 {[%clk 00:00:45]}
{[%emt 00:00:02]} 114. Ne5 {[%clk 00:00:32]} {[%emt 00:00:01]} Ra1 {[%clk
00:00:42]} {[%emt 00:00:09]} 115. Kf5 {[%clk 00:00:31]} {[%emt 00:00:05]} Rf1+
{[%clk 00:00:41]} {[%emt 00:00:06]} 116. Kg6 {[%clk 00:00:35]} Kf8 {[%clk
00:00:23]} {[%emt 00:00:24]} 117. Rf7+ {[%clk 00:00:36]} {[%emt 00:00:04]} 1-0



[ePGN "0.1;DGT LiveChess/2.2.6"]

[Event "MČR juniorů a juniorek v rapid šachu 2024"]
[Site "Hotel Fit Fun, Harrachov, Czech Republic"]
[Date "2024.09.21"]
[Round "6.14"]
[White "Stejskal Michal"]
[Black "Nagyova Daniela"]
[Result "1/2-1/2"]
[TimeControl "20+5"]
[WhiteFideId "398195"]
[BlackFideId "390070"]
[WhiteElo "1926"]
[BlackElo "1787"]

1. e4 {[%clk 00:20:06]} {[%emt 00:00:02]} e5 {[%clk 00:20:09]} {[%emt
00:00:02]} 2. Nf3 {[%clk 00:20:10]} {[%emt 00:00:02]} Nc6 {[%clk 00:20:12]}
{[%emt 00:00:02]} 3. c3 {[%clk 00:20:13]} d5 {[%clk 00:20:15]} {[%emt
00:00:02]} 4. Qa4 {[%clk 00:20:16]} {[%emt 00:00:01]} Bd7 {[%clk 00:20:13]}
{[%emt 00:00:08]} 5. exd5 {[%clk 00:20:19]} {[%emt 00:00:02]} Nd4 {[%clk
00:20:17]} {[%emt 00:00:02]} 6. Qd1 {[%clk 00:20:23]} Nxf3+ {[%clk 00:20:20]}
{[%emt 00:00:02]} 7. Qxf3 {[%clk 00:20:26]} {[%emt 00:00:01]} Nf6 {[%clk
00:20:17]} {[%emt 00:00:09]} 8. d3 {[%clk 00:20:22]} {[%emt 00:00:08]} Bd6
{[%clk 00:19:08]} {[%emt 00:01:15]} 9. Bg5 {[%clk 00:20:09]} {[%emt 00:00:17]}
c6 {[%clk 00:18:16]} {[%emt 00:00:58]} 10. Bxf6 {[%clk 00:20:04]} {[%emt
00:00:09]} gxf6 {[%clk 00:18:19]} {[%emt 00:00:03]} 11. dxc6 {[%clk 00:19:10]}
{[%emt 00:00:59]} Bxc6 {[%clk 00:18:20]} {[%emt 00:00:03]} 12. Qe3 {[%clk
00:19:13]} {[%emt 00:00:02]} f5 {[%clk 00:17:07]} {[%emt 00:01:18]} 13. Nd2
{[%clk 00:18:51]} {[%emt 00:00:27]} f4 {[%clk 00:15:29]} {[%emt 00:01:44]} 14.
Qe2 {[%clk 00:18:52]} {[%emt 00:00:03]} Qe7 {[%clk 00:14:54]} {[%emt 00:00:40]}
15. O-O-O {[%clk 00:17:53]} {[%emt 00:01:03]} O-O-O {[%clk 00:14:33]} {[%emt
00:00:26]} 16. Ne4 {[%clk 00:17:48]} {[%emt 00:00:11]} Bc7 {[%clk 00:13:57]}
{[%emt 00:00:41]} 17. g4 {[%clk 00:14:53]} {[%emt 00:03:00]} fxg3 {[%clk
00:12:49]} {[%emt 00:01:14]} 18. Bh3+ {[%clk 00:14:39]} {[%emt 00:00:18]} Kb8
{[%clk 00:12:25]} {[%emt 00:00:30]} 19. hxg3 {[%clk 00:14:32]} {[%emt
00:00:11]} f5 {[%clk 00:11:32]} {[%emt 00:00:59]} 20. Bxf5 {[%clk 00:14:11]}
{[%emt 00:00:27]} Qf7 {[%clk 00:11:33]} {[%emt 00:00:03]} 21. g4 {[%clk
00:11:17]} {[%emt 00:02:59]} Qxa2 {[%clk 00:11:30]} {[%emt 00:00:08]} 22. Rxh7
{[%clk 00:09:34]} {[%emt 00:01:48]} Rxh7 {[%clk 00:10:00]} {[%emt 00:01:35]} 23.
Bxh7 {[%clk 00:09:36]} {[%emt 00:00:02]} Rh8 {[%clk 00:08:40]} {[%emt
00:01:26]} 24. Bf5 {[%clk 00:08:53]} {[%emt 00:00:48]} Qa1+ {[%clk 00:08:36]}
{[%emt 00:00:09]} 25. Kd2 {[%clk 00:08:57]} Qxb2+ {[%clk 00:08:35]} {[%emt
00:00:07]} 26. Ke3 {[%clk 00:09:01]} Bb6+ {[%clk 00:07:17]} {[%emt 00:01:23]}
27. d4 {[%clk 00:08:58]} {[%emt 00:00:07]} exd4+ {[%clk 00:06:41]} {[%emt
00:00:41]} 28. cxd4 {[%clk 00:08:59]} {[%emt 00:00:04]} Qa3+ {[%clk 00:05:37]}
{[%emt 00:01:09]} 29. Rd3 {[%clk 00:07:50]} {[%emt 00:01:14]} Qc1+ {[%clk
00:04:53]} {[%emt 00:00:49]} 30. Qd2 {[%clk 00:07:43]} {[%emt 00:00:12]} Qf1
{[%clk 00:02:51]} {[%emt 00:02:06]} 31. Qe2 {[%clk 00:05:14]} {[%emt 00:02:35]}
Rh3+ {[%clk 00:02:18]} {[%emt 00:00:38]} 32. f3 {[%clk 00:04:52]} {[%emt
00:00:27]} Qxe2+ {[%clk 00:01:04]} {[%emt 00:01:20]} 33. Kxe2 {[%clk 00:04:56]}
{[%emt 00:00:02]} Bb5 {[%clk 00:01:08]} 34. g5 {[%clk 00:04:56]} {[%emt
00:00:04]} Bxd3+ {[%clk 00:01:09]} {[%emt 00:00:04]} 35. Ke3 {[%clk 00:04:48]}
{[%emt 00:00:13]} Bxd4+ {[%clk 00:00:28]} {[%emt 00:00:46]} 36. Kxd4 {[%clk
00:01:19]} {[%emt 00:03:34]} Rxf3 {[%clk 00:00:31]} {[%emt 00:00:02]} 37. g6
{[%clk 00:00:40]} {[%emt 00:00:45]} Bxe4 {[%clk 00:00:15]} {[%emt 00:00:20]} 38.
Kxe4 {[%clk 00:00:43]} {[%emt 00:00:03]} Rg3 {[%clk 00:00:12]} {[%emt
00:00:07]} 39. Kf4 {[%clk 00:00:47]} Rg1 {[%clk 00:00:13]} {[%emt 00:00:05]} 40.
Bg4 {[%clk 00:00:47]} {[%emt 00:00:04]} Rf1+ {[%clk 00:00:15]} {[%emt
00:00:04]} 41. Kg5 {[%clk 00:00:50]} Rf8 {[%clk 00:00:14]} {[%emt 00:00:06]} 42.
Be6 {[%clk 00:00:49]} {[%emt 00:00:06]} Rf1 {[%clk 00:00:12]} {[%emt 00:00:07]}
43. g7 {[%clk 00:00:50]} {[%emt 00:00:04]} Rg1+ {[%clk 00:00:14]} {[%emt
00:00:03]} 44. Kf6 {[%clk 00:00:54]} {[%emt 00:00:02]} Kc7 {[%clk 00:00:11]}
{[%emt 00:00:08]} 45. g8=Q {[%clk 00:00:38]} {[%emt 00:00:20]} Rxg8 {[%clk
00:00:14]} {[%emt 00:00:02]} 46. Bxg8 {[%clk 00:00:42]} {[%emt 00:00:02]} Kd6
{[%clk 00:00:15]} {[%emt 00:00:03]} 47. Kf5 {[%clk 00:00:46]} {[%emt 00:00:02]}
Kc5 {[%clk 00:00:14]} {[%emt 00:00:05]} 48. Ke4 {[%clk 00:00:50]} b5 {[%clk
00:00:11]} {[%emt 00:00:09]} 49. Kd3 {[%clk 00:00:54]} Kb4 {[%clk 00:00:12]}
{[%emt 00:00:04]} 50. Kc2 {[%clk 00:00:57]} {[%emt 00:00:01]} Ka3 {[%clk
00:00:09]} {[%emt 00:00:08]} 51. Kb1 {[%clk 00:01:00]} {[%emt 00:00:03]} a5
{[%clk 00:00:12]} {[%emt 00:00:02]} 52. Bf7 {[%clk 00:01:00]} {[%emt 00:00:05]}
a4 {[%clk 00:00:08]} {[%emt 00:00:09]} 53. Bg8 {[%clk 00:00:41]} {[%emt
00:00:24]} b4 {[%clk 00:00:10]} {[%emt 00:00:04]} 54. Bf7 {[%clk 00:00:44]}
{[%emt 00:00:01]} b3 {[%clk 00:00:09]} {[%emt 00:00:06]} 55. Be6 {[%clk
00:00:47]} {[%emt 00:00:02]} Kb4 {[%clk 00:00:10]} {[%emt 00:00:04]} 56. Bf7
{[%clk 00:00:48]} {[%emt 00:00:04]} a3 {[%clk 00:00:13]} {[%emt 00:00:02]} 57.
Bxb3 {[%clk 00:00:48]} {[%emt 00:00:06]} Kxb3 {[%clk 00:00:16]} {[%emt
00:00:01]} 58. Ka1 {[%clk 00:00:52]} {[%emt 00:00:01]} a2 {[%clk 00:00:20]}
{[%emt 00:00:01]} 1/2-1/2



[ePGN "0.1;DGT LiveChess/2.2.6"]